{"text_format":"1","workbook":"xlsx","n_sheets":1,"sheets":["Hilfsblatt Liq.Gewinn"],"not_rendered":{"charts":0,"images":1,"macros":0,"external_links":1,"defined_names":2,"comments":0,"pivot_tables":0},"unopened":[],"bounds":{"document_bytes":16777216,"sheet_cells":100000,"rows_first":2000,"rows_last":500,"rows_between":2000,"halvings":0,"cell_chars":16384,"cell_head_chars":4096},"cells_cut":0,"cells_raw":0,"read":"whole","date_system":"1900"}

{"sheet":"Hilfsblatt Liq.Gewinn","index":0,"n_rows":87,"n_cols":4,"rows_kept":87,"cut":false,"hidden":false,"merged":[[38,1,38,3],[0,0,0,1],[2,0,2,3],[3,0,3,3],[4,0,4,3],[6,0,6,1],[6,2,6,3],[24,0,24,1],[34,1,34,3],[35,1,35,3],[36,1,36,3],[37,1,37,3],[83,1,83,3],[84,1,84,3],[85,1,85,3],[86,1,86,3],[39,1,39,3],[41,0,41,1],[44,0,44,1],[45,0,45,1],[66,0,66,1],[82,1,82,3]]}
["Name, Vorname, Ort:",null,"Steuerperiode:"]
[null,null,"ZPV-Nr.:"]
["Grund für separate Besteuerung der in den letzten zwei Geschäftsjahren realisierten stillen Reserven (Liquidationsgewinne) nach Artikel 43a StG bzw. Artikel 37b DBG:"]
[]
[]
[]
["Berechnung Liquidationsgewinn direkte Bundessteuer",null,"Realisierte stille Reserven in CHF"]
[null,null,"Vorjahr","Liquidationsjahr"]
[1,"Erzielter Liquidationsgewinn brutto gemäss detaillierter Aufstellung"]
[1.1000000000000001,"Realisierte stille Reserven aus Verkauf/Überführung mobiles Anlagevermögen"]
[1.2,"Realisierte stille Reserven aus Verkauf/Überführung immobiles Anlagevermögen 1)"]
[1.3,"Übrige realisierte stille Reserven 2)  "]
[2,"Total Liquidationsgewinn brutto",{"$f":"SUM(C10:C12)","v":0},{"$f":"SUM(D10:D12)","v":0}]
[3,"Liquidationskosten"]
[null,"Notariats- und Treuhandkosten, Vermittlungsprovisionen, Inseratekosten, Kosten\nfür Löschung im Handelsregister etc. (eine detaillierte Aufstellung ist beizulegen)"]
[4,"Liquidationsgewinn direkte Bundessteuer vor Abzug der AHV-Beiträge",{"$f":"SUM(C13:C15)","v":0},{"$f":"SUM(D13:D15)","v":0}]
[5,"AHV-Beiträge, Verluste und weitere Abzüge"]
[5.0999999999999996,"Auf den Liquidationsgewinn entfallende AHV-Beiträge 3)  ","-","-"]
[5.2,"Verlustüberschuss aus dem ordentlichen Geschäftsergebnis","-","-"]
[5.3,"Verrechenbare Verluste direkte Bundessteuer früherer Steuerperioden 4)","-","-"]
[5.4,"Effektiver Einkauf in 2. Säule, soweit nicht mit übrigen Einkommen verrechnet","-","-"]
[6,"Steuerbarer Liquidationsgewinn direkte Bundessteuer",{"$f":"SUM(C16:C21)","v":0},{"$f":"SUM(D16:D21)","v":0}]
[7,"Übertrag Liquidationsgewinn aus Spalte «Vorjahr»",null,{"$f":"C22","v":0}]
[8,"Steuerbarer Liquidationsgewinn direkte Bundessteuer total",null,{"$f":"MAX(SUM(D22:D23),0)","v":0}]
["Berechnung Liquidationsgewinn Kanton"]
[9,"Übertrag von Ziffer 6 «Steuerbarer Liquidationsgewinn direkte Bundessteuer»",{"$f":"C22","v":0},{"$f":"D22","v":0}]
[10,"Rohgwinne, die beim Kanton der Grundstückgewinnsteuer unterliegen 5)","-","-"]
[11,"Mit Grundstückgewinnen verrechnete Grundstückverluste"]
[12,"Weitere Abweichungen zum Ergebnis direkte Bundessteuer 6)"]
[null,"Bezeichnung: "]
[13,"Steuerbarer Liquidationsgewinn Kanton",{"$f":"SUM(C26:C30)","v":0},{"$f":"SUM(D26:D30)","v":0}]
[14,"Übertrag Liquidationsgewinn aus Spalte «Vorjahr»",null,{"$f":"C31","v":0}]
[15,"Steuerbarer Liquidationsgewinn Kanton total",null,{"$f":"MAX(SUM(D31:D32),0)","v":0}]
[]
["1)","Bei der direkten Bundessteuer unterliegt die Differenz zwischen dem Veräusserungserlös resp. dem Verkehrswert und den Anlagekosten eines veräusserten oder ins Privatvermögen überführten Geschäftsgrundstückes der Einkommenssteuer (ausser bei Veräusserung von land- und forstwirtschaftlichen Grundstücken, Art. 18 Abs. 4 DBG). Bei der Überführung ins Privatvermögen kann der Besteuerungsaufschub nach Art.18a Abs.1 DBG beantragt werden."]
["2)","Zum Beispiel Auflösung privilegierte Warenreserve, Delkredere und geschäftsmässig nicht mehr begründete Rückstellungen (stille Reserven, welche wegen Missachtung der Abgrenzungsvorschriften nach Art. 21 Abs. 5 StG entstanden sind, gelten nicht als Liquidationsgewinne)."]
["3)","Der AHV-Beitrag ist aufgrund des steuerbaren Liquidationsgewinns der direkten Bundessteuer zu ermitteln."]
["4)","Noch nicht verrechnete Verluste der sieben der Steuerperiode vorangegangenen Geschäftsjahre sind zuerst mit dem Ergebnis der ordentlichen Geschäftstätigkeit zu verrechnen. Ein verbleibender Verlustüberhang wird mit dem Liquidationsgewinn verrechnet. Ein danach verbleibender Verlust wird mit dem übrigen Einkommen der Steuerperiode verrechnet, in welcher die Geschäftsaufgabe stattgefunden hat."]
["5)","Beim Kanton gelten bei Grundstücken des Anlagevermögens nur die wiedereingebrachten Abschreibungen als Liquidationsgewinn, der Wertzuwachsgewinn (Differenz Veräusserungserlös resp. Verkehrswert zu den Anlagekosten) unterliegt der Grundstückgewinnsteuer. Bei Grundstücken des Umlaufvermögens, welche nach Art. 21 Abs. 4 StG der Einkommenssteuer unterliegen, gilt ein Veräusserungsgewinn als ordentlicher Gewinn aus selbstständiger Erwerbstätigkeit; werden solche Grundstücke in das Privatvermögen überführt, gilt die Differenz zwischen Verkehrs- und Buchwert als Liquidationsgewinn."]
["6)","Zum Beispiel von der direkten Bundessteuer abweichende Verlustvorträge aus früheren Geschäftsjahren."]
[]
[{"$f":"A1","v":"Name, Vorname, Ort:"},null,"Steuerperiode:",{"$f":"D1","v":0}]
[null,null,"ZPV-Nr.:",{"$f":"D2","v":0}]
[]
["Berechnung zulässiger fiktiver Einkauf 1)",null,"Geschäftsjahr","Betrag In CHF"]
[]
[16,"Berechnung massgebendes Einkommen 2)"]
[16.100000000000001,"AHV-pflichtiges selbstständiges Erwerbseinkommen im Jahr 5 vor der Liquidation"]
[16.2,"AHV-pflichtiges selbstständiges Erwerbseinkommen im Jahr 4 vor der Liquidation"]
[16.3,"AHV-pflichtiges selbstständiges Erwerbseinkommen im Jahr 3 vor der Liquidation"]
[16.399999999999999,"AHV-pflichtiges selbstständiges Erwerbseinkommen im Jahr 2 vor der Liquidation"]
[16.5,"AHV-pflichtiges selbstständiges Erwerbseinkommen im Jahr 1 vor der Liquidation"]
[16.600000000000001,"Abzüglich der im Jahr 1 vor der Liquidation realisierten stillen Reserven",null,"-"]
[16.7,"Summe der Geschäftsergebnisse",null,{"$f":"SUM(D48:D53)","v":0}]
[17,"Massgebendes Einkommen (Ziff. 16.7 : Anzahl berücksichtigte Geschäftsjahre)",null,{"$f":"MIN((IFERROR(D54/(COUNTA(C48:C52)),0)),835200)","v":0}]
[18,"Berechnung anrechenbare Beitragsjahre","Kalenderjahr","Betrag In CHF"]
[18.100000000000001,"Liquidationsjahr oder das Kalenderjahr, in welchem das ordentliche AHV-Rentenalter\nerreicht worden ist, sofern dieses vor dem Liquidationsjahr liegt 3) "]
[18.2,"Kalenderjahr, in dem das 25. Altersjahr vollendet worden ist."]
[19,"Anrechenbare Beitragsjahre (massgebend für Berechnung in Ziffer 20.1)",{"$f":"MIN((C57-C58),40)","v":0}]
[20,"Berechnung zulässiger fiktiver Einkauf"]
[20.100000000000001,"Maximal möglicher fiktiver Einkauf / Berechnung:\nmassgebendes Einkommen (Ziffer 17) x anrechenbare Beitragsjahre (Ziffer 19)      x ",0.15,{"$f":"D55*C59*C61","v":0}]
[20.2,"Altersguthaben bei Vorsorgeeinrichtungen und Freizügigkeitseinrichtungen",null,"-"]
[20.3,"Vorbezüge, Barauszahlungen und andere Leistungen der 2. Säule",null,"-"]
[20.399999999999999,"Guthaben und bezogene Leistungen der Säule 3a, soweit «kleine» Säule 3a übersteigend 4)",null,"-"]
[21,"Zulässiger fiktiver Einkauf",null,{"$f":"SUM(D61:D64)","v":0}]
[]
["Aufteilung Liquidationsgewinn",null,"Kanton","Bund"]
[22,"Total separat zu besteuernder Liquidationsgewinn (gemäss Ziffer 15 und Ziffer 8)",{"$f":"'Hilfsblatt Liq.Gewinn'!D33","v":0},{"$f":"'Hilfsblatt Liq.Gewinn'!D24","v":0}]
[23,"Davon zum Vorsorgetarif zu besteuernder Liquidationsgewinnanteil Übertrag von \nZiffer 21 (maximal aber in der Höhe des gesamten Liquidationsgewinns) 5)",{"$f":"IF(C68=0,0,IF(AND(C68>D65,C68>260000,260000>D65)=TRUE,260000,MIN(C68,D65)))","v":0},{"$f":"IF(D68=0,0,MIN(D65,D68))","v":0}]
[24,"Übriger Liquidationsgewinn (Differenz zwischen Ziffer 22 und Ziffer 23)",{"$f":"MAX((C68-C69),0)","v":0},{"$f":"D68-D69","v":0}]
[]
[]
["Dieses Hilfsblatt ist vollständig und wahrheitsgetreu ausgefüllt"]
[]
["Ort und Datum: ",null,"Unterschrift Antragssteller/in:"]
[]
[]
[]
[]
[]
[]
[]
["1)","Überlebende Ehegatten, Erben und Vermächtnisnehmer können keinen fiktiven Einkauf geltend machen."]
["2)","Einkommen aus selbstständiger Erwerbstätigkeit gemäss Art. 9 Abs. 1 und 2 AHVG."]
["3)","Anrechnung Beitragsjahre maximal bis zum Erreichen des ordentlichen AHV-Rentenalters."]
["4)","Zu deklarieren sind Guthaben und bezogene Leistungen der Säule 3a, welche über eine „kleine Säule 3a“ hinausgehen (Art. 60a Abs. 2 BVV 2). Zur Bestimmung der \"kleinen Säule 3a\" kann die «Tabelle zur Berechnung des grösstmöglichen 3a-Guthabens nach Jahrgang» verwendet werden, welche jährlich vom Bundesamt für Sozialversicherung (BSV) erstellt wird."]
["5)","Bei den Kantons- und Gemeindesteuern werden immer mindestens die ersten CHF 260'000 zum Vorsorgetarif besteuert."]